fUST/lending_fUST_20250610
["ID","MTS","AMOUNT","RATE_DAILY","PERIOD"]
[365205886,1749533440087,-465.84542969,0.00022989,2]
[365205888,1749533440097,-500.0,0.00022989,2]
[365205890,1749533440107,-982.28228312,0.00022989,2]
[365205892,1749533440116,-500.0,0.00022989,2]
[365205893,1749533440126,-982.28228312,0.00022989,2]
[365205894,1749533440135,-500.0,0.00022989,2]
[365205895,1749533440144,-982.28228312,0.00022989,2]
[365205896,1749533440153,-500.0,0.00022989,2]
[365205897,1749533440163,-982.28228312,0.00022989,2]
[365205898,1749533440172,-500.0,0.00022989,2]
[365205899,1749533440181,-982.28228312,0.00022989,2]
[365205900,1749533440191,-982.28228312,0.00022989,2]
[365205901,1749533440200,-500.0,0.00022989,2]
[365205902,1749533440209,-982.28228312,0.00022989,2]
[365205903,1749533440219,-500.0,0.00022989,2]
[365205904,1749533440228,-982.28228312,0.00022989,2]
[365205905,1749533440237,-500.0,0.00022989,2]
[365205906,1749533440246,-982.28228312,0.00022989,2]
[365205907,1749533440258,-500.0,0.00022989,2]
[365205908,1749533440268,-982.28228312,0.00022989,2]
[365205909,1749533440277,-982.28228312,0.00022989,2]
[365205910,1749533440287,-982.28228312,0.00022989,2]
[365205911,1749533440297,-982.28228312,0.00022989,2]
[365205912,1749533440306,-982.28228312,0.00022989,2]
[365205913,1749533440315,-982.28228312,0.00022989,2]
[365205914,1749533440324,-982.28228312,0.00022989,2]
[365205915,1749533440344,-982.28228312,0.00022989,2]
[365205916,1749533440353,-500.0,0.00022989,2]
[365205917,1749533440363,-982.28228312,0.00022989,2]
[365205918,1749533440372,-982.28228312,0.00022989,2]
[365205919,1749533440381,-500.0,0.00022989,2]
[365205920,1749533440390,-982.28228312,0.00022989,2]
[365205921,1749533440400,-500.0,0.00022989,2]
[365205922,1749533440409,-982.28228312,0.00022989,2]
[365205923,1749533440418,-500.0,0.00022989,2]
[365205924,1749533440427,-982.28228312,0.00022989,2]
[365205925,1749533440435,-500.0,0.00022989,2]
[365205926,1749533440444,-982.28228312,0.00022989,2]
[365205927,1749533440453,-500.0,0.00022989,2]
[365205928,1749533440462,-982.28228312,0.00022989,2]
[365205929,1749533440485,-500.0,0.00022989,2]
[365205930,1749533440495,-500.0,0.00022989,2]
[365205931,1749533440506,-982.28228312,0.00022989,2]
[365205932,1749533440519,-500.0,0.00022989,2]
[365205933,1749533440529,-982.28228312,0.00022989,2]
[365205934,1749533440539,-500.0,0.00022989,2]
[365205935,1749533440549,-982.28228312,0.00022989,2]
[365205936,1749533440558,-982.28228312,0.00022989,2]
[365205937,1749533440567,-500.0,0.00022989,2]
[365205939,1749533440577,-982.28228312,0.00022989,2]
[365205941,1749533440587,-500.0,0.00022989,2]
[365205943,1749533440597,-500.0,0.00022989,2]
[365205944,1749533440607,-982.28228312,0.00022989,2]
[365205947,1749533440616,-982.28228312,0.00022989,2]
[365205949,1749533440626,-500.0,0.00022989,2]
[365205950,1749533440635,-982.28228312,0.00022989,2]
[365205953,1749533440645,-982.28228312,0.00022989,2]
[365205955,1749533440655,-982.28228312,0.00022989,2]
[365205957,1749533440665,-500.0,0.00022989,2]
[365205959,1749533440675,-982.28228312,0.00022989,2]
[365205961,1749533440684,-500.0,0.00022989,2]
[365205963,1749533440694,-982.28228312,0.00022989,2]
[365205965,1749533440705,-982.28228312,0.00022989,2]
[365205967,1749533440715,-982.28228312,0.00022989,2]
[365205969,1749533440725,-982.28228312,0.00022989,2]
[365205971,1749533440735,-500.0,0.00022989,2]
[365205973,1749533440744,-982.28228312,0.00022989,2]
[365205975,1749533440754,-453.64703195,0.00022989,2]
[365205977,1749533440764,-982.28228312,0.00022989,2]
[365205979,1749533440774,-500.0,0.00022989,2]
[365205981,1749533440784,-982.28228312,0.00022989,2]
[365205983,1749533440794,-982.28228312,0.00022989,2]
[365205985,1749533440804,-500.0,0.00022989,2]
[365205987,1749533440813,-982.28228312,0.00022989,2]
[365205989,1749533440823,-500.0,0.00022989,2]
[365205991,1749533440834,-982.28228312,0.00022989,2]
[365205994,1749533440844,-982.28228312,0.00022989,2]
[365205996,1749533440855,-398406.94044691,0.0002299,2]
[365205998,1749533440865,-1000.46731047,0.00022999,2]
[365206000,1749533440876,-500.0,0.00022999,2]
[365206002,1749533440885,-1000.46731047,0.00022999,2]
[365206004,1749533440894,-209.57626613,0.00022999,2]
[365206006,1749533440904,-1000.46731047,0.00022999,2]
[365206008,1749533440914,-1000.46731047,0.00022999,2]
[365206010,1749533440923,-500.0,0.00022999,2]
[365206012,1749533440933,-1000.46731047,0.00022999,2]
[365206014,1749533440942,-1000.46731047,0.00022999,2]
[365206016,1749533440951,-1000.46731047,0.00022999,2]
[365206018,1749533440961,-1000.46731047,0.00022999,2]
[365206020,1749533440971,-1000.46731047,0.00022999,2]
[365206022,1749533440980,-500.0,0.00022999,2]
[365206024,1749533440990,-1000.46731047,0.00022999,2]
[365206026,1749533440999,-500.0,0.00022999,2]
[365206028,1749533441008,-1000.46731047,0.00022999,2]
[365206030,1749533441018,-1000.46731047,0.00022999,2]
[365206032,1749533441027,-500.0,0.00022999,2]
[365206034,1749533441037,-1000.46731047,0.00022999,2]
[365206036,1749533441047,-500.0,0.00022999,2]
[365206038,1749533441056,-500.0,0.00022999,2]
[365206040,1749533441066,-1000.46731047,0.00022999,2]
[365206042,1749533441075,-1000.46731047,0.00022999,2]
[365206044,1749533441084,-1000.46731047,0.00022999,2]
[365206047,1749533441097,-1000.46731047,0.00022999,2]
[365206049,1749533441106,-1000.46731047,0.00022999,2]
[365206051,1749533441116,-160.0,0.00023,3]
[365206053,1749533441126,-185.0,0.00023,6]
[365206055,1749533441135,-185.0,0.00023,6]
[365206057,1749533441145,-185.0,0.00023,3]
[365206058,1749533441155,-185.0,0.00023,3]
[365206060,1749533441164,-185.0,0.00023,2]
[365206062,1749533441174,-185.0,0.00023,2]
[365206064,1749533441183,-453893.60039851,0.00023,20]
[365206066,1749533441193,-151.0,0.00023,7]
[365206068,1749533441203,-678.12940083,0.00023003,8]
[365206070,1749533441213,-642.42820928,0.00023004,2]
[365206072,1749533441222,-460.0,0.00023013,4]
[365206074,1749533441232,-460.0,0.00023013,4]
[365206076,1749533441242,-1118.98,0.00023013,4]
[365206078,1749533441254,-756.69,0.00023013,4]
[365206080,1749533441264,-4018.29,0.00023013,4]
[365206082,1749533441273,-883.61,0.00023013,4]
[365206084,1749533441283,-845.19,0.00023013,4]
[365206086,1749533441294,-670.24,0.00023013,4]
[365206088,1749533441303,-957.03,0.00023013,4]
[365206090,1749533441312,-1111.24,0.00023013,4]
[365206092,1749533441322,-946.03,0.00023013,4]
[365206094,1749533441333,-460.0,0.00023013,4]
[365206096,1749533441343,-161.0,0.00023014,7]
[365206098,1749533441353,-150.0,0.00023023,2]
[365206100,1749533441363,-600.0,0.0002304,2]
[365206102,1749533441374,-163.7222236,0.00023041,2]
[365206104,1749533441383,-150.184,0.00023057,2]
[365206106,1749533441393,-150.0,0.00023057,2]
[365206108,1749533441402,-150.0,0.00023057,2]
[365206110,1749533441411,-161.381195,0.00023068,2]
[365206112,1749533441421,-357.0740979,0.00023068,2]
[365206114,1749533441431,-573.244939,0.00023068,2]
[365206116,1749533441441,-1000.0,0.00023148,2]
[365206118,1749533441452,-678.12940083,0.00023176,8]
[365206120,1749533441462,-2112.04,0.000232,7]
[365206122,1749533441471,-2663.0,0.00023215,7]
[365206124,1749533441481,-1000.0,0.00023226,2]
[365206126,1749533441492,-601.48050061,0.0002328,2]
[365206128,1749533441501,-460.0,0.00023287,4]
[365206130,1749533441511,-460.0,0.00023287,4]
[365206132,1749533441520,-1118.98,0.00023287,4]
[365206134,1749533441530,-756.69,0.00023287,4]
[365206136,1749533441539,-4018.29,0.00023287,4]
[365206138,1749533441550,-883.61,0.00023287,4]
[365206140,1749533441559,-845.19,0.00023287,4]
[365206142,1749533441569,-670.24,0.00023287,4]
[365206144,1749533441579,-957.03,0.00023287,4]
[365206146,1749533441589,-1111.24,0.00023287,4]
[365206149,1749533441599,-946.03,0.00023287,4]
[365206151,1749533441608,-460.0,0.00023287,4]
[365206153,1749533441618,-159.173599,0.00023304,5]
[365206155,1749533441628,-1671.796009,0.00023332,3]
[365206157,1749533441638,-678.12940083,0.00023348,9]
[365206158,1749533441648,-151.0,0.000234,9]
[365206161,1749533441658,-11858.11761888,0.000234,3]
[365206163,1749533441667,-2878.0885611,0.00023435,2]
[365206164,1749533441678,-2663.0,0.00023449,7]
[365206166,1749533441687,-151.0,0.00023452,4]
[365206169,1749533441697,-151.0,0.00023452,4]
[365206170,1749533441707,-253.00852025,0.00023479,4]
[365206172,1749533441716,-151.0,0.00023479,4]
[365206174,1749533441726,-147651.63247,0.00023499,2]
[365206176,1749533441736,-13917.0,0.000235,2]
[365206178,1749533441745,-30171.75847775,0.000235,7]
[365206180,1749533441755,-151.0,0.00023507,4]
[365206182,1749533441765,-500.51997198,0.00023521,2]
[365206184,1749533441774,-630.59374506,0.00023521,2]
[365206186,1749533441784,-1200.0,0.00023521,2]
[365206189,1749533441794,-1000.0,0.00023521,2]
[365206190,1749533441803,-1000.0,0.00023521,2]
[365206193,1749533441813,-1000.0,0.00023521,2]
[365206195,1749533441822,-1000.0,0.00023521,2]
[365206197,1749533441832,-678.12940083,0.00023521,9]
[365206199,1749533441842,-617.0,0.00023527,2]
[365206201,1749533441851,-194.9397701,0.00023534,4]
[365206203,1749533441860,-1777.40015212,0.00023534,2]
[365206205,1749533441869,-1777.40015212,0.00023539,2]
[365206207,1749533441878,-4906.66955765,0.00023544,2]
[365206209,1749533441887,-4906.66955765,0.00023545,2]
[365206211,1749533441896,-10238.87001407,0.00023552,2]
[365206213,1749533441905,-4335.83955663,0.00023557,2]
[365206324,1749533442942,-0.00022573,0.00020817,2]
[365206326,1749533442955,-2960.52617521,0.00020817,2]
[365206386,1749533443595,-287.41,0.00020817,2]
[365206387,1749533443608,-711.0,0.00020817,2]
[365206679,1749533446518,-2.3254074,0.00020817,2]
[365206905,1749533469711,170.003159,0.00013699,2]
[365206910,1749533863501,-217.74404699,0.00018888,4]
[365206911,1749533865926,-309.45334445,0.00018888,4]
[365206912,1749533870792,-194.91840564,0.00018888,4]
[365206913,1749533872983,-76.26290303,0.00018888,4]
[365206915,1749534002018,-151.68429597,0.00019659,2]
[365206916,1749534005971,-254.49744474,0.00019659,2]
[365206917,1749534008591,-342.11648481,0.00019659,2]
[365206918,1749534017440,-371.76640356,0.00019659,2]
[365206919,1749534022274,-201.85554784,0.00019659,2]
[365206920,1749534024503,-346.50026447,0.00019659,2]
[365206921,1749534030763,-181.60870613,0.00019659,2]
[365206922,1749534033976,-237.62205689,0.00019659,2]
[365206923,1749534038775,-275.35372661,0.00019659,2]
[365206924,1749534046253,-213.62075488,0.00019659,2]
[365206925,1749534054696,-249.40742257,0.00019659,2]
[365206926,1749534056984,-225.07,0.00019659,2]
[365206927,1749534062776,-159.66683611,0.00019659,2]
[365206928,1749534064462,-173.52088538,0.00019659,2]
[365206929,1749534070489,-203.01044608,0.00019659,2]
[365206930,1749534072065,-225.44817889,0.00019659,2]
[365206931,1749534121851,6419.7,0.00016,10]
[365207104,1749534371620,-224.44067473,0.00018585,2]
[365207107,1749534376509,-254.49744474,0.00018585,2]
[365207108,1749534392377,-159.66683611,0.00018399,2]
[365207109,1749534408052,-201.85554784,0.00018399,2]
[365207110,1749534419381,-4638.47761605,0.00018399,2]
[365207111,1749534419403,-303.72569038,0.00018485,3]
[365207112,1749534419423,-206.3970992,0.00018558,2]
[365207113,1749534419444,-60.24215753,0.00018585,2]
[365207114,1749534419464,-91.15743684,0.00018624,2]
[365207116,1749534426261,-173.52088538,0.00018438,2]
[365207117,1749534437344,-342.11648481,0.00018438,2]
[365207118,1749534452888,-151.68429597,0.00018438,2]
[365207119,1749534467972,-249.40742257,0.00018438,2]
[365207122,1749534482434,-225.07,0.00018438,2]
[365207123,1749534497363,-181.60870613,0.00018438,2]
[365207124,1749534513262,-237.62205689,0.00018438,2]
[365207125,1749534528555,-275.35372661,0.00018438,2]
[365207127,1749534542883,-203.01044608,0.00018438,2]
[365207135,1749534557931,-371.76640356,0.00018438,2]
[365207143,1749534572309,-225.44817889,0.00018438,2]
[365207176,1749534587584,-213.62075488,0.00018438,2]
[365207177,1749534602495,-346.50026447,0.00018438,2]
[365207444,1749534617345,-180.0,0.00018254,2]
[365207445,1749534618926,-169.090823,0.00018254,2]
[365207446,1749534621094,-207.57613395,0.00018254,2]
[365207447,1749534622889,502.0,0.00024658,120]
[365207448,1749534626414,-160.46656355,0.00018254,2]
[365207449,1749534628630,-159.61573173,0.00018254,2]
[365207450,1749534630839,-186.23675429,0.00018254,2]
[365207463,1749534632505,-2348.05277819,0.00018254,2]
[365207465,1749534632517,-505.90851538,0.00018254,2]
[365207475,1749534632725,-1083.05269991,0.00018254,2]
[365207477,1749534632735,-115.82066291,0.00018624,2]
[365207479,1749534632744,-1025.36665579,0.000189,2]
[365207481,1749534632754,-300.0,0.00019199,2]
[365207483,1749534632763,-300.0,0.00019199,2]
[365207485,1749534632773,-5586.50679711,0.000192,2]
[365207487,1749534632786,-5286.60978189,0.000192,2]
[365207489,1749534632796,-1026.5530274,0.00019476,2]
[365207491,1749534632806,-1214.2456843,0.00019479,2]
[365207493,1749534632816,-24900.0,0.00020038,2]
[365207495,1749534632826,-689.96,0.0002007,2]
[365207497,1749534632835,-320.3393631,0.0002025,2]
[365207499,1749534632844,-167.99,0.00020264,2]
[365207501,1749534632854,-425.73233388,0.000209,4]
[365207503,1749534632864,-420.0,0.00020922,2]
[365207505,1749534632873,-420.0,0.00020922,2]
[365207507,1749534632882,-1285.98168521,0.00020995,2]
[365207509,1749534632892,-1379.92,0.00021026,2]
[365207510,1749534632902,-425.73233379,0.00021038,4]
[365207512,1749534632912,-500.0,0.00021073,2]
[365207514,1749534632922,-505.15160828,0.00021073,2]
[365207516,1749534632932,-500.0,0.00021073,2]
[365207518,1749534632943,-500.0,0.00021073,2]
[365207520,1749534632952,-500.0,0.00021073,2]
[365207522,1749534632962,-890.64,0.00021085,10]
[365207524,1749534632971,-410.00407777,0.00021095,4]
[365207526,1749534632980,-411.70402427,0.00021095,4]
[365207528,1749534632989,-379.83648749,0.00021095,4]
[365207530,1749534633000,-486.94271388,0.00021095,4]
[365207532,1749534633010,-414.43050531,0.00021095,4]
[365207534,1749534633019,-460.0,0.00021095,4]
[365207536,1749534633029,-435.30604679,0.00021095,4]
[365207538,1749534633039,-460.0,0.00021095,4]
[365207540,1749534633049,-460.0,0.00021095,4]
[365207542,1749534633059,-460.0,0.00021095,4]
[365207544,1749534633068,-460.0,0.00021095,4]
[365207546,1749534633077,-430.0,0.00021095,4]
[365207548,1749534633087,-431.80708131,0.00021095,4]
[365207550,1749534633096,-430.0,0.00021095,4]
[365207552,1749534633106,-380.0,0.00021095,4]
[365207554,1749534633116,-460.0,0.00021095,4]
[365207556,1749534633126,-440.98633417,0.00021095,4]
[365207558,1749534633136,-439.3641378,0.00021095,4]
[365207560,1749534633145,-440.54061231,0.00021095,4]
[365207562,1749534633155,-460.0,0.00021095,4]
[365207564,1749534633164,-430.0,0.00021095,4]
[365207566,1749534633174,-460.0,0.00021095,4]
[365207568,1749534633184,-369.05564529,0.00021095,4]
[365207570,1749534633194,-460.0,0.00021095,4]
[365207572,1749534633204,-480.42563198,0.00021095,4]
[365207574,1749534633213,-344.9857883,0.00021095,4]
[365207576,1749534633222,-446.60667681,0.00021095,4]
[365207578,1749534633230,-469.65770513,0.00021095,4]
[365207580,1749534633240,-521.4926218,0.00021095,4]
[365207582,1749534633249,-297.97502464,0.00021095,4]
[365207584,1749534633258,-205.11965153,0.00021095,4]
[365207586,1749534633268,-460.0,0.00021095,4]
[365207588,1749534633278,-575.39587358,0.00021095,4]
[365207590,1749534633287,-460.0,0.00021095,4]
[365207592,1749534633295,-460.0,0.00021095,4]
[365207593,1749534633306,-487.65313105,0.00021095,4]
[365207595,1749534633316,-460.0,0.00021095,4]
[365207597,1749534633325,-460.0,0.00021095,4]
[365207599,1749534633335,-460.0,0.00021095,4]
[365207601,1749534633346,-460.0,0.00021095,4]
[365207603,1749534633356,-440.0,0.00021095,4]
[365207605,1749534633366,-460.0,0.00021095,4]
[365207607,1749534633376,-460.0,0.00021095,4]
[365207609,1749534633386,-460.0,0.00021095,4]
[365207611,1749534633395,-460.0,0.00021095,4]
[365207613,1749534633405,-460.0,0.00021095,4]
[365207615,1749534633415,-198.56042712,0.00021095,4]
[365207617,1749534633425,-460.0,0.00021095,4]
[365207619,1749534633434,-460.0,0.00021095,4]
[365207621,1749534633443,-457.48250322,0.00021095,4]
[365207623,1749534633453,-493.42216502,0.00021095,4]
[365207625,1749534633462,-460.0,0.00021095,4]
[365207627,1749534633472,-152.50998377,0.00021095,4]
[365207629,1749534633482,-440.0,0.00021095,4]
[365207630,1749534633492,-460.0,0.00021095,4]
[365207632,1749534633501,-440.0,0.00021095,4]
[365207634,1749534633511,-213.45068498,0.00021095,4]
[365207636,1749534633521,-445.87577671,0.00021095,4]
[365207638,1749534633531,-460.0,0.00021095,4]
[365207640,1749534633541,-460.0,0.00021095,4]
[365207642,1749534633551,-460.0,0.00021095,4]
[365207644,1749534633561,-460.0,0.00021095,4]
[365207646,1749534633572,-460.0,0.00021095,4]
[365207648,1749534633582,-460.0,0.00021095,4]
[365207650,1749534633592,-460.0,0.00021095,4]
[365207652,1749534633602,-460.0,0.00021095,4]
[365207654,1749534633612,-460.0,0.00021095,4]
[365207655,1749534633625,-604.87,0.00021095,4]
[365207657,1749534633635,-420.0,0.00021095,4]
[365207659,1749534633645,-460.0,0.00021095,4]
[365207661,1749534633655,-460.0,0.00021095,4]
[365207663,1749534633665,-460.0,0.00021095,4]
[365207665,1749534633675,-460.0,0.00021095,4]
[365207667,1749534633685,-460.0,0.00021095,4]
[365207669,1749534633694,-460.0,0.00021095,4]
[365207671,1749534633706,-389.54131061,0.00021095,4]
[365207673,1749534633718,-460.0,0.00021095,4]
[365207675,1749534633727,-460.0,0.00021095,4]
[365207677,1749534633737,-460.0,0.00021095,4]
[365207679,1749534633747,-460.0,0.00021095,4]
[365207681,1749534633758,-545.28059524,0.00021095,4]
[365207683,1749534633768,-460.0,0.00021095,4]
[365207685,1749534633778,-460.0,0.00021095,4]
[365207687,1749534633788,-460.0,0.00021095,4]
[365207689,1749534633798,-460.0,0.00021095,4]
[365207691,1749534633808,-460.0,0.00021095,4]
[365207693,1749534633818,-431.74172313,0.00021095,4]
[365207695,1749534633828,-569.30534601,0.00021095,4]
[365207697,1749534633838,-460.0,0.00021095,4]
[365207699,1749534633848,-540.28225912,0.00021095,4]
[365207701,1749534633858,-427.01478878,0.00021095,4]
[365207703,1749534633868,-460.0,0.00021095,4]
[365207705,1749534633877,-460.0,0.00021095,4]
[365207707,1749534633887,-460.0,0.00021095,4]
[365207709,1749534633897,-460.0,0.00021095,4]
[365207711,1749534633908,-400.0,0.00021095,4]
[365207713,1749534633918,-213.16871835,0.00021095,4]
[365207715,1749534633928,-460.0,0.00021095,4]
[365207717,1749534633938,-460.0,0.00021095,4]
[365207719,1749534633948,-460.0,0.00021095,4]
[365207721,1749534633957,-461.43472963,0.00021095,4]
[365207723,1749534633967,-380.0,0.00021095,4]
[365207725,1749534633977,-460.0,0.00021095,4]
[365207727,1749534633987,-459.94105785,0.00021095,4]
[365207729,1749534633997,-460.0,0.00021095,4]
[365207731,1749534634007,-499.29314434,0.00021095,4]
[365207733,1749534634017,-460.0,0.00021095,4]
[365207735,1749534634027,-460.0,0.00021095,4]
[365207736,1749534634037,-460.0,0.00021095,4]
[365207738,1749534634046,-460.0,0.00021095,4]
[365207740,1749534634056,-460.0,0.00021095,4]
[365207742,1749534634067,-460.0,0.00021095,4]
[365207744,1749534634076,-460.0,0.00021095,4]
[365207746,1749534634086,-337.3802108,0.00021095,4]
[365207748,1749534634096,-193.48633906,0.00021095,4]
[365207750,1749534634107,-507.94716466,0.00021095,4]
[365207752,1749534634116,-460.0,0.00021095,4]
[365207754,1749534634126,-460.0,0.00021095,4]
[365207756,1749534634136,-226.87963672,0.00021095,4]
[365207758,1749534634145,-494.64543624,0.00021095,4]
[365207760,1749534634155,-460.0,0.00021095,4]
[365207762,1749534634164,-461.27037832,0.00021095,4]
[365207764,1749534634174,-460.0,0.00021095,4]
[365207766,1749534634183,-460.0,0.00021095,4]
[365207767,1749534634192,-435.16761535,0.00021095,4]
[365207769,1749534634202,-460.0,0.00021095,4]
[365207771,1749534634211,-460.0,0.00021095,4]
[365207774,1749534634221,-460.0,0.00021095,4]
[365207775,1749534634231,-507.56785786,0.00021095,4]
[365207777,1749534634240,-460.0,0.00021095,4]
[365207779,1749534634250,-303.84760298,0.00021095,4]
[365207781,1749534634259,-517.67367949,0.00021095,4]
[365207783,1749534634269,-262.98759906,0.00021095,4]
[365207785,1749534634278,-460.0,0.00021095,4]
[365207787,1749534634288,-460.0,0.00021095,4]
[365207789,1749534634298,-460.0,0.00021095,4]
[365207791,1749534634307,-460.0,0.00021095,4]
[365207793,1749534634317,-460.0,0.00021095,4]
[365207795,1749534634326,-460.0,0.00021095,4]
[365207797,1749534634336,-533.89068475,0.00021095,4]
[365207799,1749534634346,-182.3742132,0.00021095,4]
[365207801,1749534634355,-539.26152659,0.00021095,4]
[365207803,1749534634366,-460.0,0.00021095,4]
[365207805,1749534634375,-460.0,0.00021095,4]
[365207807,1749534634385,-453.10434963,0.00021095,4]
[365207809,1749534634394,-460.0,0.00021095,4]
[365207811,1749534634405,-460.0,0.00021095,4]
[365207813,1749534634414,-460.0,0.00021095,4]
[365207815,1749534634425,-460.0,0.00021095,4]
[365207817,1749534634434,-445.8948729,0.00021095,4]
[365207819,1749534634444,-460.0,0.00021095,4]
[365207821,1749534634454,-460.0,0.00021095,4]
[365207823,1749534634464,-460.0,0.00021095,4]
[365207824,1749534634474,-460.0,0.00021095,4]
[365207826,1749534634483,-460.0,0.00021095,4]
[365207828,1749534634493,-460.0,0.00021095,4]
[365207830,1749534634502,-580.55,0.00021095,4]
[365207832,1749534634512,-460.0,0.00021095,4]
[365207834,1749534634522,-460.0,0.00021095,4]
[365207836,1749534634531,-457.33359813,0.00021095,4]
[365207838,1749534634541,-460.0,0.00021095,4]
[365207840,1749534634550,-460.0,0.00021095,4]
[365207842,1749534634560,-460.0,0.00021095,4]
[365207844,1749534634569,-453.41059763,0.00021095,4]
[365207857,1749534634690,-460.0,0.00021095,4]
[365207859,1749534634701,-475.68615654,0.00021095,4]
[365207861,1749534634711,-460.0,0.00021095,4]
[365207863,1749534634721,-460.0,0.00021095,4]
[365207865,1749534634730,-460.0,0.00021095,4]
[365207867,1749534634740,-466.28102834,0.00021095,4]
[365207869,1749534634750,-460.0,0.00021095,4]
[365207871,1749534634759,-460.0,0.00021095,4]
[365207873,1749534634770,-503.44983123,0.00021095,4]
[365207875,1749534634779,-460.0,0.00021095,4]
[365207877,1749534634788,-383.11207404,0.00021095,4]
[365207879,1749534634798,-353.40002941,0.00021095,4]
[365207881,1749534634808,-380.0,0.00021095,4]
[365207883,1749534634817,-500.0,0.00021095,4]
[365207885,1749534634827,-500.0,0.00021095,4]
[365207887,1749534634837,-500.0,0.00021095,4]
[365207889,1749534634846,-594.44691719,0.00021095,4]
[365207891,1749534634856,-156.12328826,0.00021095,4]
[365207893,1749534634866,-460.0,0.00021095,4]
[365207895,1749534634875,-427.75107115,0.00021095,4]
[365207897,1749534634885,-1048.57,0.00021095,4]
[365207899,1749534634894,-390.11724144,0.00021095,4]
[365207901,1749534634903,-460.0,0.00021095,4]
[365207903,1749534634913,-426.03995349,0.00021095,4]
[365207905,1749534634923,-460.91084822,0.00021095,4]
[365207907,1749534634933,-426.51973898,0.00021095,4]
[365207909,1749534634943,-460.0,0.00021095,4]
[365207911,1749534634952,-460.0,0.00021095,4]
[365207913,1749534634962,-430.0,0.00021095,4]
[365207915,1749534634971,-452.71314791,0.00021095,4]
[365207917,1749534634980,-460.0,0.00021095,4]
[365207919,1749534634989,-430.0,0.00021095,4]
[365207921,1749534634999,-460.0,0.00021095,4]
[365207923,1749534635008,-460.0,0.00021095,4]
[365207925,1749534635018,-460.0,0.00021095,4]
[365207927,1749534635027,-460.0,0.00021095,4]
[365207929,1749534635036,-460.0,0.00021095,4]
[365207931,1749534635045,-420.0,0.00021095,4]
[365207933,1749534635055,-460.0,0.00021095,4]
[365207935,1749534635064,-380.0,0.00021095,4]
[365207937,1749534635074,-460.0,0.00021095,4]
[365207939,1749534635084,-460.0,0.00021095,4]
[365207941,1749534635094,-380.0,0.00021095,4]
[365207943,1749534635103,-454.56446489,0.00021095,4]
[365207945,1749534635113,-460.0,0.00021095,4]
[365207947,1749534635122,-460.0,0.00021095,2]
[365207949,1749534635132,-447.77931511,0.00021095,4]
[365207951,1749534635142,-460.0,0.00021095,4]
[365207953,1749534635152,-446.1881828,0.00021095,4]
[365207955,1749534635162,-451.97256478,0.00021095,4]
[365207957,1749534635171,-460.0,0.00021095,4]
[365207958,1749534635180,-452.04772813,0.00021095,4]
[365207959,1749534635190,-293.12608196,0.00021095,4]
[365207960,1749534635199,-460.0,0.00021095,4]
[365207961,1749534635209,-654.44,0.00021095,4]
[365207962,1749534635219,-460.0,0.00021095,4]
[365207963,1749534635229,-460.0,0.00021095,4]
[365207964,1749534635239,-369.33902747,0.00021095,4]
[365207965,1749534635248,-460.0,0.00021095,4]
[365207966,1749534635257,-434.67485657,0.00021095,4]
[365207967,1749534635267,-460.0,0.00021095,4]
[365207968,1749534635277,-460.0,0.00021095,4]
[365207969,1749534635286,-246.33217553,0.00021095,4]
[365207970,1749534635296,-444.48812059,0.00021095,4]
[365207971,1749534635306,-460.0,0.00021095,4]
[365207972,1749534635315,-460.0,0.00021095,4]
[365207973,1749534635325,-460.0,0.00021095,4]